Cogmind - Beta 12 @@@ ROGUE MODE // 2024.01.17 @ 21:09:27 // Winter2019/RPGLIKE Player: Darcyisverycute Result: Smashed by cave-in Performance ------------- Evolutions (2) 1000 Regions Visited (4) 800 Robots Destroyed (57) 285 Value Destroyed (2340) 2340 Prototype IDs (2) 40 Alien Tech Used (0) 0 Bonus (583) 583 TOTAL SCORE: 5048 Bonus ------- High Alert Combat Kills 383 Entered Garrisons 200 Cogmind --------- Core Integrity 0/600 Matter 55/450 Energy 31/125 System Corruption 0% Temperature Cool (2) Movement Walking (120) Location -8/Garrison Parts ------- > --- POWER (1) -------- Light Ion Engine > --- PROPULSION (2) --- Aluminum Leg Aluminum Leg > --- UTILITY (3) ------ Improved Target Analyzer Focal Shield Improved Shield Generator > --- WEAPON (5) ------- Improved Light Cannon Rocket Launcher Improved Grenade Launcher Improved Grenade Launcher > --- INVENTORY (2) ---- Medium Reactive Plating Relay Coupler [Sentry] (42) Peak State ------------ > --- POWER ------------ Light Ion Engine > --- PROPULSION ------- Aluminum Leg Aluminum Leg > --- UTILITY ---------- Improved Target Analyzer Focal Shield Improved Shield Generator > --- WEAPON ----------- Improved Light Cannon Rocket Launcher Improved Grenade Launcher Improved Grenade Launcher > --- INVENTORY -------- Medium Reactive Plating [Rating: 27] Favorites ----------- Power Light Ion Engine Engine Light Ion Engine Propulsion Aluminum Leg Leg Aluminum Leg Utility Signal Interpreter Device Improved Terrain Scanner Processor Signal Interpreter Protection Light Armor Plating Weapon Improved Grenade Launcher Ballistic Gun Light Assault Rifle Ballistic Cannon Improved Light Cannon Launcher Improved Grenade Launcher Build | -11 -10 -9 -8 -8 ------- Run | Jun Mat Mat Mat Gar Slots Evolved 7 | 3 . 2 . 2 Power . | . . . . . Propulsion 1 | 1 . . . . Utility 2 | 1 . . . 1 Weapon 4 | 1 . 2 . 1 Parts Attached 19 | 6 2 4 3 4 Power 2 | 1 . . . 1 Engine 2 | 1 . . . 1 Core . | . . . . . Reactor . | . . . . . Propulsion 3 | 2 . 1 . . Treads . | . . . . . Leg 3 | 2 . 1 . . Wheel . | . . . . . Hover . | . . . . . Flight . | . . . . . Utility 6 | 1 1 1 . 3 Device 3 | 1 . . . 2 Storage . | . . . . . Processor 2 | . 1 . . 1 Hackware . | . . . . . Protection 1 | . . 1 . . Artifact . | . . . . . Weapon 8 | 2 1 2 3 . Energy Gun . | . . . . . Energy Cannon . | . . . . . Ballistic Gun 3 | 2 . 1 . . Ballistic Cannon 1 | . . 1 . . Launcher 4 | . 1 . 3 . Special Weapon . | . . . . . Impact Weapon . | . . . . . Slashing Weapon . | . . . . . Piercing Weapon . | . . . . . Special Melee Weapon . | . . . . . Unidentified Prototypes . | . . . . . Parts Lost . | . . . . . Power . | . . . . . Propulsion . | . . . . . Utility . | . . . . . Weapon . | . . . . . Highest Loss Streak . | . . . . . To Critical Strikes . | . . . . . Average Slot Usage (%) 93 | . 95 97 98 90 Engine 11 | . 14 11 11 10 Leg 22 | . 28 23 22 20 Device 8 | . 14 9 . 6 Processor 10 | . 9 11 11 9 Protection 3 | . . 1 11 4 Ballistic Gun 9 | . 23 17 12 . Ballistic Cannon 7 | . . 9 11 10 Launcher 20 | . 4 11 19 30 Naked Turns . | . . . . . Heaviest Build 28 | 6 8 15 26 28 Greatest Support 30 | 25 25 25 25 30 Greatest Overweight (x) 1 | . . . 1 1 Average Overweight (x) . | . . . . . Largest Inventory Capacity 2 | 2 2 2 2 2 Average Capacity 2 | 2 2 2 2 2 Most Carried 2 | 2 2 2 2 2 Average Carried 1 | 1 1 1 2 1 Final Capacity 2 | 2 2 2 2 2 Final Carried 2 | 2 2 2 2 2 Class Distribution -------------------- 62% | Mutant 29% | Tank 7% | Gunner Dominant Class ---------------- Mutant | -10/Materials Tank | -9/Materials Tank | -8/Materials Mutant | -8/Garrison Resources | -11 -10 -9 -8 -8 ----------- Run | Jun Mat Mat Mat Gar Matter Collected 1255 | 276 230 163 98 488 Remotely . | . . . . . Salvage Created 936 | 92 226 129 71 418 Parts 76 | 5 20 12 6 33 Haulers Intercepted . | . . . . . Recyclers Shooed 1 | . 1 . . . Parts Field Recycled . | . . . . . Retrieved Matter . | . . . . . Parts Self-Destructed . | . . . . . Prevented . | . . . . . Kills | -11 -10 -9 -8 -8 ------- Run | Jun Mat Mat Mat Gar Combat Hostiles Destroyed 45 | . 10 10 1 24 Guns 7 | . 7 . . . Cannons 11 | . . 6 1 4 AOE 27 | . 3 4 . 20 Classes Destroyed 10 | 2 5 2 . 1 Worker 2 | . 1 1 . . Builder 2 | . 2 . . . Tunneler 1 | 1 . . . . Recycler 1 | 1 . . . . Operator 2 | . . 1 1 . Watcher 4 | . 2 . . 2 Swarmer 12 | . 6 . . 6 Grunt 23 | . 4 9 1 9 Sentry 9 | . . 1 . 8 Behemoth 1 | . . . . 1 Best Kill Streak 8 | 1 7 8 2 7 Combat Bots Only 7 | . 3 7 1 6 Max Kills in Single Turn 4 | 1 2 3 1 4 Gunslinging . | . . . . . Exploded 4 | . 1 2 . 4 Melee . | . . . . . Uniques/NPCs Destroyed . | . . . . . Combat | -11 -10 -9 -8 -8 -------- Run | Jun Mat Mat Mat Gar Damage Taken 1703 | . 463 140 34 1066 Core 1323 | . 365 108 26 824 Absorbed by Shields 150 | . . . . 150 Redirected to Core 1134 | . 289 99 26 720 Core Remaining (%) 75 | 100 45 82 . . Volleys Fired 117 | 8 61 11 2 35 Largest 4 | 2 2 4 4 4 Hottest 144 | 40 50 109 122 144 Shots Fired 235 | 16 102 34 8 75 Gun 123 | 16 90 15 2 . Cannon 39 | . . 11 2 26 Launcher 73 | . 12 8 4 49 Special . | . . . . . Kinetic 162 | 16 90 26 4 26 Thermal . | . . . . . Explosive 73 | . 12 8 4 49 Electromagnetic . | . . . . . Robot Hit Streak 14 | 6 12 14 5 12 Robot Miss Streak 8 | 1 8 2 1 2 Penetration Max . | . . . . . Secondary Targets 1 | . 1 . . . Max Gunslinging Chain 1 | . 1 . . . Shots Hit Robots 126 | 10 53 26 5 32 Core Hits 104 | 6 29 19 7 43 Critical Kills . | . . . . . Critical Parts Destroyed 2 | . 1 1 . . Critical Strikes 5 | . 1 2 . 2 Destroy 2 | . 1 1 . . Blast 3 | . . 1 . 2 Melee Attacks . | . . . . . Impact . | . . . . . Slashing . | . . . . . Piercing . | . . . . . Sneak Attacks . | . . . . . Combat Hostiles . | . . . . . Follow-up Attacks . | . . . . . Damage Inflicted 4538 | 86 1110 671 150 2521 Guns 618 | 86 432 91 9 . Cannons 604 | . . 225 51 328 Explosions 3314 | . 676 355 90 2193 Melee . | . . . . . Ramming 2 | . 2 . . . Kinetic 1222 | 86 432 316 60 328 Thermal . | . . . . . Explosive 3314 | . 676 355 90 2193 Electromagnetic . | . . . . . Impact . | . . . . . Slashing . | . . . . . Piercing . | . . . . . Highest Corruption . | . . . . . Average Corruption . | . . . . . Corruption Purged . | . . . . . Corruption Blocked . | . . . . . Overload Shots . | . . . . . Overflow Damage 69 | . 18 20 . 31 Projectiles 5 | . . . . 5 Explosions 64 | . 18 20 . 26 Melee . | . . . . . Knockbacks 2 | . . . . 2 Impact . | . . . . . Kinetic 2 | . . . . 2 Secondary . | . . . . . Self-Inflicted Damage 488 | . 116 38 34 300 Shots 25 | . 7 1 2 15 Rammed . | . . . . . Targets Rammed 1 | . 1 . . . Kicked 1 | . 1 . . . Crushed . | . . . . . Highest Temperature 114 | . 26 32 33 114 Average Temperature 21 | . 9 12 18 31 Received Heat Transfer 285 | . 60 54 . 171 Siege Activations . | . . . . . Robots Corrupted . | . . . . . Combat Hostiles . | . . . . . Parts Fried . | . . . . . Impact Corruptions . | . . . . . Robots Melted . | . . . . . Combat Hostiles . | . . . . . Parts Melted . | . . . . . Heat Transferred . | . . . . . Parts Sabotaged . | . . . . . Parts Stolen . | . . . . . Parts Stripped . | . . . . . Power Chain Reactions . | . . . . . Missiles Intercepted . | . . . . . Alert | -11 -10 -9 -8 -8 ------- Run | Jun Mat Mat Mat Gar Peak Influence 1200 | 10 475 522 282 1200 Initial 220 | . 6 115 220 183 Average 448 | 4 186 360 249 677 Maximum Alert Level 4 | . 2 2 1 4 Low Security (%) 28 | 100 67 30 . 2 Level 1 24 | . 23 6 100 24 Level 2 24 | . 8 62 . 27 Level 3 18 | . . . . 35 Level 4 5 | . . . . 10 Level 5 . | . . . . . High Security . | . . . . . Max Security . | . . . . . Squads Dispatched 6 | . 3 3 . . Investigation 2 | . 1 1 . . Extermination . | . . . . . Reinforcement 4 | . 2 2 . . Assault . | . . . . . Garrison . | . . . . . Intercept . | . . . . . Searches Triggered . | . . . . . Construction Impeded . | . . . . . Haulers Reinforced . | . . . . . Active Scanning Responses . | . . . . . Cargo Convoy Interrupts . | . . . . . Stealth | -11 -10 -9 -8 -8 --------- Run | Jun Mat Mat Mat Gar Distress Signals 4 | . 2 1 . 1 Communications Jammed . | . . . . . Distress Signals . | . . . . . Times Spotted 60 | . 20 11 2 27 Peak Tracking Total 6 | . 4 5 1 6 Tactical Retreats 2 | . 1 . . 1 Traps | -11 -10 -9 -8 -8 ------- Run | Jun Mat Mat Mat Gar Traps Triggered 1 | . 1 . . . Indirectly . | . . . . . Trap Hack Attempts . | . . . . . Triggered . | . . . . . Disarmed . | . . . . . Reprogrammed . | . . . . . Reused . | . . . . . Traps Extracted . | . . . . . Installed . | . . . . . Triggered . | . . . . . Machines | -11 -10 -9 -8 -8 ---------- Run | Jun Mat Mat Mat Gar Machines Disabled 9 | . 2 3 . 4 Max in Single Turn 2 | . 2 1 . 1 Garrison Relay 3 | . . . . 3 Machines Repaired . | . . . . . Machines Sabotaged . | . . . . . Overloaded Fab Kills . | . . . . . Hacking | -11 -10 -9 -8 -8 --------- Run | Jun Mat Mat Mat Gar Machines Accessed 7 | . 3 2 2 . Terminals 5 | . 2 2 1 . Fabricators . | . . . . . Repair Stations . | . . . . . Recycling Units 1 | . 1 . . . Scanalyzers . | . . . . . Garrison Access 1 | . . . 1 . Total Hacks 12 | . 5 4 3 . Successful 7 | . 3 1 3 . Failed 5 | . 2 3 . . Catastrophic 2 | . 1 1 . . Database Lockouts . | . . . . . Manual 1 | . 1 . . . Terminals 10 | . 4 4 2 . Fabricators . | . . . . . Repair Stations . | . . . . . Recycling Units 1 | . 1 . . . Scanalyzers . | . . . . . Garrison Access 1 | . . . 1 . Terminal Hacks 5 | . 2 1 2 . Prototype ID Bank 1 | . 1 . . . Emergency Access Points 1 | . . . 1 . Alert Level 1 | . . 1 . . Security Status 1 | . . . 1 . Zone Layout 1 | . 1 . . . Fabricator Hacks . | . . . . . Repair Station Hacks . | . . . . . Recycling Unit Hacks 1 | . 1 . . . Report Inventory 1 | . 1 . . . Scanalyzer . | . . . . . Garrison Access Hacks 1 | . . . 1 . Unlock Access 1 | . . . 1 . Unauthorized Hacks . | . . . . . Terminals . | . . . . . Fabricators . | . . . . . Repair Stations . | . . . . . Recycling Units . | . . . . . Scanalyzers . | . . . . . Garrison Access . | . . . . . Data Cores Recovered 1 | . . . 1 . Used . | . . . . . Hacking Detections 5 | . 2 2 1 . Full Trace Events 1 | . . 1 . . Feedback Events . | . . . . . Feedback Blocked . | . . . . . Robot Schematics Acquired . | . . . . . Robots Built . | . . . . . Authchips . | . . . . . Time . | . . . . . Total Robot Build Rating . | . . . . . Part Schematics Acquired . | . . . . . Parts Built . | . . . . . Authchips . | . . . . . Time . | . . . . . Total Part Build Rating . | . . . . . Parts Repaired . | . . . . . Time . | . . . . . Parts Recycled . | . . . . . Recycled Matter . | . . . . . Retrieved Matter . | . . . . . Retrieved Components . | . . . . . Parts Scanalyzed . | . . . . . Part Schematics Acquired . | . . . . . Parts Damaged . | . . . . . Bothacking | -11 -10 -9 -8 -8 ------------ Run | Jun Mat Mat Mat Gar Used RIF Installer . | . . . . . Robots Hacked . | . . . . . Non-combat . | . . . . . Combat . | . . . . . Robot Hacks Applied . | . . . . . Relay Couplers Released 5 | . . . . 5 Machine Destruction 5 | . . . . 5 Fabnet Peak Effective % . | . . . . . Robots Rewired . | . . . . . Allies Hacked . | . . . . . Hacks Repelled . | . . . . . Allies | -11 -10 -9 -8 -8 -------- Run | Jun Mat Mat Mat Gar Total Allies . | . . . . . Largest Group . | . . . . . Highest-Rated Group . | . . . . . Highest-Rated Ally . | . . . . . Total Orders . | . . . . . Ally Attacks . | . . . . . Total Damage . | . . . . . Kills . | . . . . . Allies Corrupted . | . . . . . Allies Melted . | . . . . . Intel | -11 -10 -9 -8 -8 ------- Run | Jun Mat Mat Mat Gar Robot Analysis Total . | . . . . . Derelict Logs Recovered . | . . . . . Drone Launches . | . . . . . Drone Recoveries . | . . . . . Exploration | -11 -10 -9 -8 -8 ------------- Run | Jun Mat Mat Mat Gar Turns Passed 1804 | 121 435 242 94 912 Spaces Moved 1119 | 74 236 155 63 591 Core 4 | 4 . . . . Treads . | . . . . . Legs 1115 | 70 236 155 63 591 Wheels . | . . . . . Hover . | . . . . . Flight . | . . . . . Fastest Speed 50 | 50 120 120 120 120 Average Speed 127 | 116 120 120 132 134 Slowest Speed 190 | 120 120 120 190 190 Overloaded Moves . | . . . . . Propulsion Burnouts . | . . . . . Robots Hopped . | . . . . . Cave-ins Triggered 1 | . . . . 1 Exploration Rate (%) 29 | 6 50 19 10 63 Regions Visited 4 Branch Regions . Pre-discovered Areas . | . . . . . Known Exits Taken 3 | . 1 1 1 . Unknown Exits Taken 1 | 1 . . . . Scrap Searched . | . . . . . Spaces Dug 32 | . . . . 32 Terrain Destroyed 458 | . 63 60 24 311 Melee . | . . . . . Projectile 1 | . . . . 1 AOE 457 | . 63 60 24 310 Terrain Rammed . | . . . . . Walls Destroyed . | . . . . . Machines Disabled . | . . . . . Actions | -11 -10 -9 -8 -8 --------- Run | Jun Mat Mat Mat Gar Total 1305 | 93 303 189 70 650 Wait 5 | 4 . 1 . . Move 1114 | 73 235 154 62 590 Hop . | . . . . . Pick Up 6 | 2 1 . . 3 Fast Attach 14 | 6 1 2 3 2 Attach 3 | . . 1 . 2 Detach 2 | . . 1 . 1 Swap 2 | . 1 1 . . Drop 8 | . 1 1 3 3 Fire 117 | 8 61 11 2 35 Melee . | . . . . . Ram . | . . . . . Kick 1 | . 1 . . . Crush . | . . . . . Escape Stasis . | . . . . . Rewire . | . . . . . Trap . | . . . . . Miscellaneous 33 | . 2 17 . 14 Route ------- -11/Junkyard -10/Materials (discovered 2 exits: *Mat x2) -9/Materials -8/Materials -8/Garrison (discovered 2 exits: [*Fac x2]) History --------- Turn | Location | Event 1 | -11/Junkyard | Upgraded with Propulsion slot (x1) 1 | -11/Junkyard | Upgraded with Utility slot (x1) 1 | -11/Junkyard | Upgraded with Weapon slot (x1) 14 | -11/Junkyard | Discovered new exit (range 15) 122 | -11/Junkyard | Entered Materials 296 | -10/Materials | Discovered new exit (range 3) 299 | -10/Materials | Identified exit to Materials 306 | -10/Materials | Build established: Mutant 473 | -10/Materials | Discovered exit to Materials (range 15) 500 | -10/Materials | Core integrity fell below 50% 557 | -10/Materials | Entered another Materials area 558 | -9/Materials | Core integrity fell below 50% 559 | -9/Materials | Reached level 2 561 | -9/Materials | Upgraded with Weapon slot (x1) 632 | -9/Materials | Reached level 3 667 | -9/Materials | Upgraded with Weapon slot (x1) 669 | -9/Materials | Destroyed 7 combat bots 696 | -9/Materials | Discovered new exit (range 13) 722 | -9/Materials | Identified exit to Materials 799 | -9/Materials | Entered another Materials area 801 | -8/Materials | Reached level 4 853 | -8/Materials | Reached level 5 864 | -8/Materials | Identified exit to Garrison 893 | -8/Materials | Entered Garrison 986 | -8/Garrison | Upgraded with Weapon slot (x1) 1046 | -8/Garrison | Build established: Tank 1089 | -8/Garrison | Garrison Relay disabled 1137 | -8/Garrison | Reached level 6 1188 | -8/Garrison | Triggered checkpoint 1234 | -8/Garrison | Core integrity fell below 50% 1309 | -8/Garrison | Spotted B-75 Beast 1334 | -8/Garrison | Core integrity fell below 20% 1334 | -8/Garrison | Destroyed B-75 Beast 1493 | -8/Garrison | Discovered new exit (range 16) 1600 | -8/Garrison | Triggered checkpoint 1609 | -8/Garrison | Reached level 7 1666 | -8/Garrison | Discovered new exit (range 11) 1696 | -8/Garrison | Garrison Relay disabled 1708 | -8/Garrison | Triggered checkpoint 1722 | -8/Garrison | Upgraded with Utility slot (x1) 1724 | -8/Garrison | Garrison Relay disabled 1725 | -8/Garrison | Build established: Mutant 1805 | -8/Garrison | Crushed by falling debris 1805 | -8/Garrison | Smashed by cave-in Last Messages --------------- 01616_ The unstable cave ceiling collapses. 01620_ Acquired 7 matter. 01666_ EXIT=FOUND 01696_ Garrison Relay disabled. 01696_ Relay Coupler [Grunt] tumbles out of relay unit. 01696_ Relay Coupler [Sentry] tumbles out of relay unit. 01708_ Beams of light sweep through the air. An alarm sounds. 01708_ Critical hit (Burn: +25). 01708_ G-47 Trooper destroyed. 01708_ Destroyed Lgt. Nuclear Core. 01712_ G-47 Trooper destroyed. 01716_ Acquired 1 matter. 01717_ Acquired 25 matter. 01718_ Acquired 3 matter. 01722_ Upgraded: Utility Slot (+1) 01724_ Garrison Relay disabled. 01724_ Relay Coupler [Cutter] tumbles out of relay unit. 01744_ Acquired Relay Coupler [Sentry]. 01804_ The unstable cave ceiling collapses. 01805_ Crushed by falling debris. Map ----- +----------------------------------------------------+ | ?????????????????????????????????????????????# | | ###################??????????????????????????## | | #???????????????????????????#!!* | | #????????????????????##?????# | | #### < ######### #???????????????????# ?????# | | ???# #???????# #???????????????????# #?????#! ! | | ???#####???????# #???????????????????# #?????#### | | ???????????????# #???????????????????# #????????? | | ???????????????# #???????????????????# #????????? | | ???????????????# #?????????????????### #????????? | | ???????????????# #?????????????????# # ########## | | ???????????????# #???????????????### | | ???????????????# #???????????????# | | ???????????????# #???????????????## | | ???????????????# #???????????????# ####### # | | ???????????????# #???????????????### #????# # | | ???????????????# #?????????????????# #????# # | | ???????????????# #?????????????????# ##????# # | | ???????????????# #?????????????????# #?????# # | | ???????????????# #????####???####### #?????# | | ???????????????# #??########## ## #?????# | | ???????????????# #?#### #! = ## #?????# # | | ???????????????# ### # [ ####### # | | ???????????????# * # | | ???????????????# * [ # | | ???????????????##### @ ## # #### | | ???????????????????### ### # ## #### ## #? | | ?????????????????????### # #? | | ???????????????????????# ### #? | | ???????????????????????# # ###? | | ???????????????????????# #?? | | ???????????????????????### ## ## #### ##?? | | ?????????????????????????# ## ## ## ##### | | ?????????????????????????# ^ | | ?????????????????????????# ^ ^^ | | ?????????????????????????# ^ | | ?????????????????????????# ## ############# | | ?????????????????????????# #? ## #???# ### | | ?????????????????????????# #?##### ###?# # | | ?????????????????????????# #??# ### | | ?????????????????????????# ???# ## # | | ?????????????????????????# ??## ## # # | | ???????????????????????????????# # ## | | ???????????????????????????????## ## | | ???????????????????????????????# | | ???????????????????????????????## # # # | | ????????????????????????????????## # ##### | | ????????????????????????????????# # ##???# | | ????????????????????????????????#########????### | | ???????????????????????????????????????????????# | +----------------------------------------------------+ Best States ------------- Heat Dissipation 37 Energy Generation 10 Energy Capacity 125 Matter Stores 300 Matter Capacity 450 Sight Range 18 Terrain Scan Range 16 Terrain Scan Density 10 Armor Coverage 150 Resistance: KI 20 Resistance: TH 5 Resistance: EX 5 Evasion (%) 55 Target Analysis 6 Item Schematics ----------------- None Robot Schematics ------------------ None Fabricated ------------ Nothing Alien Tech Used ----------------- None Achievements -------------- None Challenges ------------ None RPGLIKE | -11 -10 -9 -8 -8 --------- Run | Jun Mat Mat Mat Gar Levels Raised 6 | . . 2 2 2 XP Earned 13240 | 3000 1422 3037 1635 4146 XP Spent 11245 | 2350 . 3520 1500 3875 Upgrades 27 | 6 . 10 3 8 Propulsion Slot 1 | 1 . . . . Utility Slot 2 | 1 . . . 1 Weapon Slot 4 | 1 . 2 . 1 Heat Dissipation 2 | . . 2 . . Matter Storage 3 | . . . . 3 Mass Support 2 | 1 . . . 1 Inventory Capacity 2 | 2 . . . . Sight Range 2 | . . . . 2 Ranged Accuracy 3 | . . . 3 . KI Resistance % 2 | . . 2 . . TH Resistance % 1 | . . 1 . . EX Resistance % 1 | . . 1 . . KI Damage % 2 | . . 2 . . Protomatter Created 403 | . 61 181 . 161 Integrity Restored 678 | . 39 327 . 312 Core 678 | . 39 327 . 312 Protomatter Decayed 13 | . 8 5 . . Game ------ Seed ImprinterScanMeganuke Manual? 0 Play Time 00:26:08 Cumulative 59.9 hours Start 2024.01.17 @ 20:43:25 End 2024.01.17 @ 21:09:27 Sessions 1 Manual Loads 0 Difficulty Rogue Special Mode Winter2019/RPGLIKE Game No. 27 Rogue 19 Adventurer 8 Explorer 0 Win Type - Total 1 Types 1/0/0/0/0/0/0/0/0 Lore% 42 Gallery% 47 Achievement% 41 Wizard Run 0 Options --------- ASCII 0 Keyboard 1 Movement Numpad Keybinds 1 Fullscreen 2 Font 18/TerminusBold Map View 76x50 Tactical HUD 1 Map Filters NONE Filters NONE Steam 0 RUN: 7a95db7f-d154-459a-9efe-4ca533eb7a07